bitfinex-derivatives/quotes_ETHF0:USTF0_20251005
["timestamp","ask_amount","ask_price","bid_price","bid_amount"]
[1759645246878,1.22747876,4565.2,4565.1,0.3233]
[1759645247180,1.22747876,4565.2,4565.1,0.5489]
[1759645249484,1.22747876,4565.2,4565.0,0.22]
[1759645249681,0.8817,4565.0,4564.9,0.00206385]
[1759645249878,1.33427876,4565.0,4564.9,0.55206385]
[1759645250281,1.33441096,4565.0,4564.9,0.55206385]
[1759645250991,1.33441096,4565.0,4564.9,0.00206385]
[1759645251580,1.33441096,4565.0,4564.9,0.32416385]
[1759645252483,1.33441096,4565.0,4564.9,0.00206385]
[1759645252883,4.54221096,4565.0,4564.9,0.00206385]
[1759645254685,1.33441096,4565.0,4564.9,0.00206385]
[1759645254885,4.54221096,4565.0,4564.9,0.00206385]
[1759645257793,0.754,4564.1,4564.0,0.55]
[1759645258095,1.20671096,4564.1,4564.0,0.55]
[1759645258591,1.20671096,4564.1,4564.0,0.55158992]
[1759645260385,1.20671096,4564.1,4564.0,0.00158992]
[1759645261395,1.20671096,4564.1,4563.2,1.17356838]
[1759645261396,0.8817,4563.0,4562.9,0.57191613]
[1759645261587,3.87711096,4563.0,4562.9,1.92944552]
[1759645262186,3.87711096,4563.0,4562.9,0.77741613]
[1759645262394,4.19241096,4563.0,4562.9,0.78026055]
[1759645263193,4.54221096,4563.0,4562.9,0.57476055]
[1759645263792,4.54221096,4563.0,4562.9,0.02476055]
[1759645263997,1.33441096,4563.0,4562.9,0.02476055]
[1759645264998,1.33441096,4563.0,4562.9,0.57476055]
[1759645266898,0.2166,4563.0,4562.9,1.93228994]
[1759645267902,0.5319,4563.0,4562.9,1.93228994]
[1759645269096,0.2166,4563.0,4562.9,1.93228994]
[1759645269297,0.5319,4563.0,4562.9,1.93228994]
[1759645269804,0.754,4563.0,4562.9,1.93228994]
[1759645270296,0.2166,4563.0,4562.9,1.93228994]
[1759645270501,0.5319,4563.3,4563.2,0.4334]
[1759645270802,1.2191218,4563.3,4563.2,0.7555]
[1759645271403,1.2191218,4563.3,4563.2,0.55]
[1759645271897,0.8817,4563.0,4562.9,0.57476055]
[1759645272604,0.8817,4563.0,4562.9,0.02476055]
[1759645273905,1.1017,4563.0,4562.9,0.02476055]
[1759645278298,3.3355,4563.5,4563.0,0.3151]
[1759645278299,3.2078,4563.5,4563.0,0.3151]
[1759645278511,0.7584,4563.1,4563.0,0.7485]
[1759645278700,1.22372047,4563.1,4563.0,0.7485]
[1759645279508,0.2209,4563.1,4563.0,2.03092939]
[1759645280506,0.5356,4563.1,4563.0,2.03092939]
[1759645280902,0.7584,4563.1,4563.0,2.03092939]
[1759645281306,1.22411139,4563.1,4563.0,2.03092939]
[1759645282110,0.90941139,4563.1,4563.0,2.03092939]
[1759645282704,0.68661139,4563.1,4563.0,2.03092939]
[1759645285012,0.68661139,4563.1,4563.0,0.8789]
[1759645285608,0.46571139,4563.1,4563.0,0.8789]
[1759645288310,0.68661139,4563.1,4563.0,0.8789]
[1759645289212,0.46571139,4563.1,4563.0,0.8789]
[1759645292917,1.02931139,4563.1,4563.0,0.8789]
[1759645293110,0.5636,4563.1,4563.0,0.8789]
[1759645293306,1.03171432,4563.1,4563.0,0.8789]
[1759645293818,1.24891432,4563.1,4563.0,0.8789]
[1759645294213,1.24891432,4563.1,4563.0,0.7485]
[1759645300223,1.24891432,4563.1,4563.0,0.9685]
[1759645303021,1.24891432,4563.1,4563.0,0.7463]
[1759645303219,0.46811432,4563.1,4563.0,1.48279]
[1759645303421,0.46811432,4563.1,4563.0,1.0884]
[1759645303717,1.24891432,4563.1,4563.0,1.0884]
[1759645304225,1.24891432,4563.1,4563.0,2.08486822]
[1759645305117,1.24891432,4563.1,4563.0,0.7463]
[1759645305623,0.9087,4563.0,4562.9,0.57856055]
[1759645305820,1.37681432,4563.0,4562.9,0.57856055]
[1759645306326,1.37681432,4563.0,4562.9,0.02476055]
[1759645308129,1.59681432,4563.0,4562.9,0.02476055]
[1759645308322,0.3113,4562.9,4561.9,3.5242]
[1759645308518,0.7272,4562.0,4561.9,4.74376822]
[1759645308723,1.19531432,4562.0,4561.9,4.74376822]
[1759645309227,1.19531432,4562.0,4561.9,4.96626822]
[1759645309424,1.1973571,4562.0,4561.9,4.96810422]
[1759645311426,1.1973571,4562.0,4561.9,3.971636]
[1759645311624,1.1973571,4562.0,4561.9,4.96810422]
[1759645313729,1.7205371,4562.0,4561.9,0.001836]
[1759645314622,6.7205371,4562.0,4561.9,0.001836]
[1759645317122,6.3260571,4562.0,4558.9,0.98687]
[1759645317327,0.5178,4561.1,4561.0,1.88616822]
[1759645317528,0.98591432,4561.1,4561.0,1.88616822]
[1759645318128,0.98591432,4561.1,4561.0,0.89156795]
[1759645318327,1.19531432,4561.1,4561.0,1.76033617]
[1759645318631,1.19531432,4561.1,4561.0,0.31826795]
[1759645318825,1.19531432,4561.1,4561.0,0.54136795]
[1759645319233,1.19531432,4561.1,4561.0,0.76386795]
[1759645320126,1.19531432,4561.1,4561.0,0.00186795]
[1759645320622,1.19531432,4561.1,4561.0,0.54136795]
[1759645320822,1.19531432,4561.1,4561.0,0.00186795]
[1759645321636,0.7272,4561.1,4561.0,0.00186795]
[1759645322133,1.18331357,4561.1,4561.0,0.00186795]
[1759645322329,0.7272,4561.1,4561.0,0.54136795]
[1759645324134,0.7272,4561.1,4561.0,0.22496795]
[1759645324636,0.7272,4561.1,4561.0,0.54136795]
[1759645324837,0.7272,4561.1,4561.0,0.76386795]
[1759645325725,4.93146822,4561.1,4561.0,0.00186795]
[1759645325925,5.38724681,4561.1,4561.0,0.00186795]
[1759645328838,5.60824681,4561.1,4561.0,0.00186795]
[1759645330135,5.40174681,4561.1,4558.3,1.55977326]
[1759645330341,0.5178,4559.8,4559.7,0.762]
[1759645330635,0.5178,4559.8,4559.7,1.75846822]
[1759645331227,0.5178,4559.8,4559.7,1.76062092]
[1759645332033,0.2065,4559.8,4559.7,1.76062092]
[1759645332934,0.2065,4560.1,4560.0,0.5733]
[1759645333139,0.60114,4560.2,4560.1,0.762]
[1759645333335,0.7272,4560.2,4559.7,0.0021527]
[1759645333542,0.7272,4559.9,4559.8,0.5395]
[1759645334134,0.7272,4559.9,4559.8,0.762]
[1759645335030,0.7272,4559.9,4559.8,0.5395]
[1759645335632,0.81057,4559.8,4559.7,0.0021527]
[1759645335837,1.12187,4559.8,4559.7,0.0021527]
[1759645336039,1.57868056,4559.8,4559.7,0.0021527]
[1759645336634,1.57868056,4559.8,4559.7,0.7641527]
[1759645337235,1.18401056,4559.8,4559.7,0.7641527]
[1759645337436,1.18401056,4559.8,4559.7,1.76062092]
[1759645337631,0.6369,4559.8,4559.7,0.7641527]
[1759645338238,0.9543,4559.8,4559.7,0.7641527]
[1759645339138,0.3174,4560.2,4559.8,0.73496]
[1759645339344,0.5358,4560.2,4560.1,1.76426822]
[1759645339644,1.20939946,4560.2,4560.1,0.7678]
[1759645340339,0.2184,4558.1,4558.0,3.2078]
[1759645340540,0.45729946,4558.1,4558.0,3.7633]
[1759645340842,0.67569946,4558.1,4558.0,4.1036]
[1759645341044,0.45729946,4558.1,4558.0,5.10006822]
[1759645341241,0.45729946,4558.1,4558.0,5.32106822]
[1759645341538,0.45729946,4558.1,4558.0,5.32366205]
[1759645341539,0.4597518,4558.1,4558.0,5.32366205]
[1759645342439,0.6781518,4558.1,4558.0,4.10619383]
[1759645342639,0.6781518,4558.1,4558.0,4.32719383]
[1759645343039,0.4597518,4558.1,4558.0,4.32719383]
[1759645343439,0.4597518,4558.1,4558.0,9.32719383]
[1759645343749,2.54893644,4559.4,4558.0,9.32719383]
[1759645343750,3.2078,4559.5,4559.4,0.747]
[1759645344045,3.2078,4559.5,4559.4,1.96446822]
[1759645344247,3.2078,4559.5,4559.4,0.968]
[1759645344450,0.71208,4559.8,4559.4,1.96446822]
[1759645344746,0.5358,4559.7,4559.6,0.747]
[1759645344946,0.00194466,4559.8,4559.7,0.747]
[1759645345135,0.00194466,4559.8,4559.7,1.74346822]
[1759645345338,0.00194466,4559.8,4559.7,0.747]
[1759645345539,0.75404466,4559.8,4559.7,1.42396822]
[1759645345740,0.6131,4559.4,4559.3,0.747]
[1759645345946,0.5358,4559.4,4559.3,1.96446822]
[1759645346144,0.39468,4559.7,4559.4,0.3195]
[1759645346145,0.3174,4559.7,4559.4,0.3195]
[1759645346350,0.00194466,4559.8,4559.7,0.3195]
[1759645346539,0.00194466,4559.8,4559.7,0.968]
[1759645346740,0.53774466,4559.8,4559.7,0.968]
[1759645347448,0.31934466,4559.8,4559.7,0.968]
[1759645348040,0.53774466,4559.8,4559.7,0.968]
[1759645349436,0.75404466,4559.8,4559.7,0.6485]
[1759645350944,0.75404466,4559.8,4559.7,0.968]
[1759645353041,0.3188,4559.7,4559.6,0.99646822]
[1759645353246,0.7597,4559.7,4559.6,0.99646822]
[1759645353440,0.7597,4559.7,4559.6,1.21746822]
[1759645353841,0.7597,4559.4,4559.3,3.4202]
[1759645354038,0.7597,4559.4,4559.3,3.6305]
[1759645354844,0.7597,4559.4,4559.3,4.62696822]
[1759645355245,1.1544,4559.4,4559.3,4.41666822]
[1759645355835,0.7597,4559.4,4559.3,4.41666822]
[1759645356841,0.7597,4559.4,4558.8,0.3195]
[1759645356842,0.2236,4558.9,4558.8,0.5319]
[1759645357043,0.5424,4558.9,4558.8,0.9632]
[1759645357240,0.5424,4558.9,4558.8,1.95966822]
[1759645358047,0.3188,4558.9,4558.8,1.95966822]
[1759645358548,0.9619,4559.5,4559.4,0.2124]
[1759645358743,1.4088979,4559.5,4559.4,0.2124]
[1759645359144,1.7276979,4559.5,4559.3,0.221]
[1759645359344,1.2066979,4559.4,4559.3,0.221]
[1759645359544,0.4409,4559.4,4558.7,3.2078]
[1759645359841,1.15442,4559.2,4559.1,1.41916822]
[1759645360240,1.15442,4559.2,4559.1,1.95966822]
[1759645360642,0.7597,4559.2,4559.1,1.95966822]
[1759645360847,0.5424,4559.2,4559.1,1.95966822]
[1759645361047,0.5424,4559.2,4559.1,0.7422]
[1759645361249,0.5424,4559.2,4559.1,1.95966822]
[1759645361746,0.3188,4559.2,4559.1,1.95966822]
[1759645362344,0.3188,4559.4,4559.3,0.4227]
[1759645362544,0.3188,4559.4,4559.3,1.73866822]
[1759645363652,0.5424,4559.4,4559.3,1.73866822]
[1759645364045,0.3188,4559.4,4559.3,1.73866822]
[1759645364245,0.3188,4559.4,4559.3,1.89708555]
[1759645365549,0.54434466,4559.8,4559.7,0.4227]
[1759645365753,0.54434466,4559.8,4559.7,0.9632]
[1759645366249,0.76164466,4559.8,4559.7,0.9632]
[1759645366448,0.76164466,4559.8,4559.7,1.89708555]
[1759645366651,0.54434466,4559.8,4559.7,0.9632]
[1759645367748,0.76164466,4559.8,4559.7,0.9632]
[1759645367946,0.32074466,4559.8,4559.7,0.9632]
[1759645368153,0.54714466,4559.8,4559.7,0.9632]
[1759645369548,0.00194466,4559.8,4559.7,0.9632]
[1759645370148,0.00194466,4559.8,4559.7,4.171]
[1759645370643,0.3418,4560.7,4560.6,0.8234]
[1759645370846,3.2078,4561.1,4560.9,0.39458]
[1759645371156,3.5496,4561.1,4561.0,2.11688555]
[1759645371355,3.2078,4561.1,4561.0,2.11688555]
[1759645371558,3.20943972,4561.1,4561.0,2.11688555]
[1759645371854,0.00163972,4561.1,4561.0,2.11688555]
[1759645373248,0.5682,4561.8,4561.7,0.4288]
[1759645373549,0.45486824,4561.8,4561.7,2.11788555]
[1759645374153,0.3418,4562.9,4562.8,0.2152]
[1759645374458,0.1307,4562.5,4562.3,3.2078]
[1759645374652,0.9098,4562.5,4562.4,0.221]
[1759645375449,0.9098,4562.5,4562.4,0.4362]
[1759645376859,0.9098,4562.5,4562.4,0.6498]
[1759645377154,0.9098,4562.5,4562.4,2.11788555]
[1759645377344,0.6989,4562.5,4562.4,2.11788555]
[1759645378558,3.2078,4562.8,4562.6,0.4288]
[1759645378753,0.5682,4562.7,4562.6,0.742]
[1759645379057,0.7791,4562.7,4562.6,0.963]
[1759645379251,0.3418,4562.7,4562.6,1.35743]
[1759645379560,0.00174562,4562.9,4562.8,1.13641]
[1759645379755,0.1307,4562.5,4562.3,3.2078]
[1759645379952,0.7791,4562.4,4562.3,3.423]
[1759645380255,0.3418,4562.4,4562.3,4.1708]
[1759645380556,0.5682,4562.4,4562.3,3.9498]
[1759645380758,0.7791,4562.4,4562.3,3.423]
[1759645380955,0.7791,4562.4,4561.7,3.20996642]
[1759645381148,0.7791,4561.8,4561.7,4.58005197]
[1759645381353,0.7791,4561.8,4561.7,4.80105197]
[1759645381858,0.7791,4561.8,4561.7,5.01465197]
[1759645382060,0.7791,4561.8,4561.7,5.32785197]
[1759645382853,0.5682,4561.8,4561.7,5.10685197]
[1759645383057,0.3418,4561.8,4561.7,5.32785197]
[1759645384360,0.5682,4561.8,4561.7,5.32785197]
[1759645387362,0.7791,4561.8,4561.7,3.63876642]
[1759645387661,0.7791,4561.8,4561.7,1.80685197]
[1759645390764,0.7791,4561.8,4561.7,0.22316642]
[1759645391654,0.7791,4561.8,4561.7,0.00216642]
[1759645391860,0.7791,4561.8,4561.7,0.22316642]
[1759645393151,0.7791,4561.8,4561.7,0.65196642]
[1759645393356,0.5682,4561.8,4561.7,0.96516642]
[1759645393755,0.7791,4561.8,4561.7,0.65196642]
[1759645394870,0.7791,4561.8,4561.7,0.22316642]
[1759645396463,0.7791,4561.8,4561.7,0.43836642]
[1759645396665,0.7791,4561.8,4561.7,0.22316642]
[1759645397067,0.7791,4561.8,4561.7,0.43836642]
[1759645399466,1.23189836,4561.8,4561.7,0.43836642]
[1759645399868,1.23189836,4561.8,4561.7,0.65196642]
[1759645400070,1.23189836,4561.8,4561.7,0.43836642]
[1759645401763,1.23189836,4561.8,4561.7,0.22316642]
[1759645402369,1.23189836,4561.8,4561.7,0.65846642]
[1759645403667,1.23189836,4561.8,4561.7,0.43836642]
[1759645405674,1.23189836,4561.8,4561.7,0.22316642]
[1759645406164,1.23189836,4561.8,4561.7,0.00216642]
[1759645412474,1.62639836,4561.8,4561.7,0.00216642]
[1759645415672,1.62639836,4561.8,4560.7,3.2078]
[1759645415673,0.4414,4560.8,4560.7,4.36268555]
[1759645415878,0.7663,4560.8,4560.7,4.58368555]
[1759645416077,0.7663,4560.8,4560.7,3.2078]
[1759645416078,1.22035263,4560.8,4560.7,3.2078]
[1759645416577,1.22035263,4560.8,4560.7,4.36268555]
[1759645416877,1.22035263,4560.8,4560.7,4.58823677]
[1759645418471,1.00705263,4560.8,4560.7,5.12903677]
[1759645419366,0.553,4560.8,4560.7,5.12903677]
[1759645419571,1.00761865,4560.8,4560.7,5.12903677]
[1759645420576,0.553,4560.8,4560.7,5.12903677]
[1759645421676,0.553,4560.8,4560.7,5.35003677]
[1759645422274,0.3249,4560.8,4560.7,5.35003677]
[1759645422476,0.3249,4561.0,4560.9,0.2233]
[1759645422780,0.3249,4561.0,4560.9,0.7641]
[1759645422781,0.77950725,4561.0,4560.9,0.7641]
[1759645424567,0.77950725,4561.0,4560.9,0.9851]
[1759645424769,1.00760725,4561.0,4560.9,0.9851]
[1759645424971,0.45460725,4561.0,4560.9,0.9851]
[1759645425373,0.3249,4561.2,4560.9,0.9851]
[1759645425576,0.3249,4561.2,4561.1,1.91898555]
[1759645425782,0.77938587,4561.2,4561.1,1.91898555]
[1759645426279,0.77938587,4561.2,4561.1,1.76126364]
[1759645427082,0.45448587,4561.2,4561.1,2.75842728]
[1759645427381,3.7516,4561.5,4561.4,1.15323]
[1759645427583,4.20610637,4561.5,4561.4,2.37039364]
[1759645427984,4.33400637,4561.5,4561.4,2.37039364]
[1759645428282,4.56110637,4561.5,4561.4,2.04899364]
[1759645428878,4.56110637,4561.5,4561.4,1.82899364]
[1759645429082,4.56110637,4561.5,4561.4,2.04899364]
[1759645431383,4.56110637,4561.5,4561.4,1.83289364]
[1759645432389,1.35330637,4561.5,4561.4,1.83289364]
[1759645432986,1.35330637,4561.5,4561.4,2.04899364]
[1759645433589,0.45450637,4561.5,4561.4,2.37039364]
[1759645433782,0.79230637,4561.5,4561.4,2.37039364]
[1759645435282,0.45450637,4561.5,4561.4,2.37039364]
[1759645435483,0.7838,4561.8,4561.6,0.39451]
[1759645435787,0.7838,4561.8,4561.7,1.21716364]
[1759645435991,1.23861785,4561.8,4561.7,1.43836364]
[1759645439196,1.23861785,4561.8,4561.7,1.21836364]
[1759645439381,1.23861785,4561.8,4561.7,1.21716364]
[1759645440591,1.23861785,4561.8,4561.7,1.39167364]
[1759645440792,1.23861785,4561.8,4561.7,1.61167364]
[1759645441491,1.23861785,4561.8,4561.7,0.99716364]
[1759645441693,1.23861785,4561.8,4561.5,0.39452]
[1759645441899,1.23861785,4561.7,4561.6,0.22]
[1759645442489,0.3378,4561.4,4561.1,0.99716364]
[1759645442689,0.7838,4561.2,4561.1,1.21716364]
[1759645442890,1.23483991,4561.2,4561.1,0.99716364]
[1759645443096,0.9117,4561.0,4560.9,0.39457]
[1759645443301,1.36273991,4561.0,4560.9,0.61557]
[1759645445205,1.36273991,4561.0,4560.9,0.83677]
[1759645446099,1.36273991,4561.0,4560.9,0.61577]
[1759645446300,1.36273991,4561.0,4560.9,0.83677]
[1759645446706,1.36273991,4561.0,4560.9,0.61557]
[1759645447808,1.36273991,4561.0,4560.9,0.83677]
[1759645448810,1.13563991,4561.0,4560.9,1.15327]
[1759645449010,1.36273991,4561.0,4560.9,1.37427]
[1759645449809,1.36273991,4561.0,4560.9,1.15327]
[1759645450010,1.36273991,4561.0,4560.9,1.37427]
[1759645450310,1.36273991,4561.0,4560.9,1.05287]
[1759645450812,1.36273991,4561.0,4560.9,1.37427]
[1759645451710,1.36273991,4561.0,4560.9,1.05287]
[1759645456613,1.36273991,4561.0,4560.9,1.37427]
[1759645456815,1.36273991,4561.0,4560.9,1.39173364]
[1759645458709,1.36179427,4561.0,4560.9,1.39173364]
[1759645461214,1.36179427,4561.0,4560.9,1.61173364]
[1759645461415,0.5353,4560.9,4560.8,0.39458]
[1759645461614,1.20139427,4560.9,4560.8,0.61458]
[1759645463113,1.20139427,4560.9,4560.7,3.21005122]
[1759645463306,1.20139427,4560.8,4560.7,0.22225122]
[1759645464111,6.20139427,4560.8,4560.7,0.00225122]
[1759645466522,6.42139427,4560.8,4560.7,0.00225122]
[1759645470827,1.42139427,4560.8,4560.7,0.00225122]
[1759645477030,0.96619427,4560.8,4560.7,0.74035122]
[1759645478227,0.75919427,4560.8,4560.7,0.74035122]
[1759645478839,0.1279,4561.0,4560.9,0.4248]
[1759645479135,0.44959299,4561.0,4560.9,2.12984364]
[1759645479631,0.78359299,4561.0,4560.9,2.34984364]
[1759645483742,0.334,4561.0,4560.9,2.34984364]
[1759645487144,3.4351,4561.5,4561.4,1.14333]
[1759645487338,3.88593026,4561.5,4561.4,2.36049364]
[1759645488042,3.88593026,4561.5,4561.4,1.36333]
[1759645488243,3.88593026,4561.5,4561.4,2.51707522]
[1759645488448,0.45083026,4561.5,4561.4,1.36333]
[1759645489043,0.67813026,4561.5,4561.4,1.36333]
[1759645490046,0.45083026,4561.5,4561.4,1.36333]
[1759645492145,0.5634,4561.8,4561.7,0.82681]
[1759645492339,0.67802833,4561.8,4561.7,2.51705522]
[1759645492540,0.45072833,4561.8,4561.7,2.51705522]
[1759645492742,3.2078,4562.0,4561.9,0.61769]
[1759645493047,3.2078,4562.0,4561.9,1.14329]
[1759645493940,0.00174562,4562.9,4562.8,0.3165]
[1759645494144,0.00174562,4562.9,4562.8,2.12254522]
[1759645494643,0.00174562,4562.9,4562.8,3.27629044]
[1759645494839,0.00174562,4562.9,4562.8,2.12254522]
[1759645502543,0.00174562,4562.9,4562.8,3.27629044]
[1759645502742,0.5634,4563.9,4563.8,1.14312]
[1759645502945,0.7812,4563.9,4563.8,1.36312]
[1759645503149,0.5634,4563.9,4563.8,1.36312]
[1759645503349,0.7812,4563.9,4563.8,1.36312]
[1759645503744,0.7828377,4563.9,4563.8,1.36312]
[1759645505355,0.5650377,4563.9,4563.8,1.36312]
[1759645505556,0.7828377,4563.9,4563.8,0.4432]
[1759645505947,0.7828377,4563.9,4563.8,0.7597]
[1759645506148,0.7828377,4563.9,4563.8,0.22]
[1759645506355,0.7828377,4563.9,4563.8,0.5397]
[1759645506555,0.7828377,4563.9,4563.8,0.7597]
[1759645506747,0.0016377,4563.9,4563.8,0.9688]
[1759645506950,0.0016377,4563.9,4563.8,4.1766]
[1759645507256,0.5634,4564.6,4564.5,1.26956]
[1759645507551,0.2273,4564.6,4564.5,1.48956]
[1759645507953,0.5634,4564.8,4564.7,1.14305]
[1759645508245,0.5634,4564.8,4564.7,2.29942737]
[1759645508246,0.23012111,4564.8,4564.7,2.29942737]
[1759645508451,0.00282111,4564.8,4564.7,2.29942737]
[1759645510251,0.00282111,4564.8,4564.7,2.51942737]
[1759645511860,0.5634,4565.5,4565.4,0.7488]
[1759645512052,0.5634,4565.5,4565.4,0.9688]
[1759645512253,0.7812,4565.5,4565.4,0.9688]
[1759645512559,0.7812,4565.5,4565.4,1.36299]
[1759645512858,0.78283693,4565.5,4565.4,0.9688]
[1759645513061,0.56503693,4565.5,4565.4,0.9688]
[1759645513450,0.90773693,4565.5,4565.4,0.22]
[1759645513961,0.90773693,4565.5,4565.4,0.4432]
[1759645514260,0.90773693,4565.5,4565.4,0.5397]
[1759645514456,0.90773693,4565.5,4565.4,0.7607]
[1759645515460,0.90773693,4565.5,4565.4,0.4442]
[1759645515660,0.90773693,4565.5,4565.4,0.7607]
[1759645516258,0.90773693,4565.5,4565.4,0.9698]
[1759645516656,0.78283693,4565.5,4565.4,0.9698]
[1759645516955,0.00163693,4565.5,4565.4,1.36399]
[1759645518364,0.00163693,4565.5,4565.4,1.36299]
[1759645519664,0.00163693,4565.5,4565.4,4.57079]
[1759645522058,0.34,4566.8,4566.1,1.58404522]
[1759645522362,0.561,4566.4,4566.3,0.7576]
[1759645522554,0.7733,4566.4,4566.3,0.9776]
[1759645522969,0.7755501,4566.4,4566.3,0.9776]
[1759645523859,0.7733,4565.6,4565.5,0.7576]
[1759645524060,0.7733,4565.6,4565.5,0.9776]
[1759645524256,0.7733,4565.6,4565.5,0.7576]
[1759645524465,0.7733,4565.6,4565.5,0.9776]
[1759645524663,0.561,4565.6,4565.5,1.1007]
[1759645525069,0.221,4565.8,4565.7,0.82445]
[1759645525271,0.561,4565.8,4565.7,2.30549522]
[1759645525767,0.221,4565.8,4565.7,2.30549522]
[1759645526163,0.561,4565.8,4565.7,2.30549522]
[1759645526965,0.561,4566.3,4566.2,0.7576]
[1759645527263,0.561,4566.3,4566.2,0.9776]
[1759645527463,0.7733,4566.3,4566.2,0.9776]
[1759645527763,0.7733,4566.3,4566.2,0.4442]
[1759645527966,3.5500501,4566.4,4566.3,0.3273]
[1759645528164,3.9833501,4566.4,4566.3,1.91134522]
[1759645531571,3.2100501,4566.4,4566.3,1.91134522]
[1759645532572,3.9717501,4566.4,4566.3,1.91134522]
[1759645533072,0.0022501,4566.4,4566.3,1.91134522]
[1759645533466,0.7639501,4566.4,4566.3,1.91134522]
[1759645533772,0.7639501,4566.4,4566.3,1.15374522]
[1759645534272,0.8878,4566.0,4565.9,1.54788522]
[1759645534573,0.8878,4566.0,4565.9,2.31608522]
[1759645534868,0.8878,4566.0,4565.9,2.52988522]
[1759645535073,0.5538,4566.0,4565.9,2.52988522]
[1759645535262,0.7617,4566.0,4565.9,2.52988522]
[1759645535672,0.7639501,4566.4,4566.3,0.94231]
[1759645535871,0.7639501,4566.4,4566.3,1.16231]
[1759645536071,0.7639501,4566.4,4566.3,0.61411]
[1759645536271,0.7639501,4566.4,4566.3,0.4462]
[1759645536464,0.7639501,4566.4,4566.3,0.22]
[1759645536867,0.1261,4566.0,4565.9,1.47574522]
[1759645537073,0.1261,4566.0,4565.5,2.09612522]
[1759645537074,0.7617,4565.6,4565.5,2.09612522]
[1759645537274,0.7617,4565.6,4565.5,2.52992522]
[1759645537670,0.7617,4565.6,4565.5,2.66442522]
[1759645538071,0.7617,4565.6,4565.5,2.52992522]
[1759645538668,0.2275,4565.9,4565.8,0.39415]
[1759645538972,0.7617,4565.9,4565.8,1.37615]
[1759645539774,0.7617,4565.9,4565.8,0.22]
[1759645540073,0.7617,4565.9,4565.8,0.982]
[1759645540570,0.3285501,4566.4,4566.3,0.2262]
[1759645540764,0.5560501,4566.4,4566.3,0.762]
[1759645540964,0.7639501,4566.4,4566.3,0.762]
[1759645541169,0.7639501,4566.4,4566.3,0.2262]
[1759645541377,0.7639501,4566.4,4566.1,0.22]
[1759645541779,0.7639501,4566.4,4566.3,0.2262]
[1759645542269,0.4354,4566.2,4566.1,0.4462]
[1759645542475,0.7617,4566.2,4566.1,0.7682]
[1759645542664,0.7617,4566.2,4566.1,0.4462]
[1759645543068,0.7617,4566.2,4566.1,0.7682]
[1759645543771,0.7617,4566.2,4566.1,0.22]
[1759645543975,0.7617,4566.2,4566.1,0.7682]
[1759645544177,0.3263,4566.2,4566.1,0.982]
[1759645544472,0.7617,4566.2,4566.1,0.982]
[1759645545671,0.4376501,4566.4,4566.3,0.762]
[1759645545878,0.0022501,4566.4,4566.3,1.91574522]
[1759645546172,1e-07,4566.4,4566.3,1.91574522]
[1759645546477,3.9695,4567.2,4567.1,0.762]
[1759645546672,3.9695,4567.2,4567.1,2.30978522]
[1759645547267,3.9695,4567.2,4567.1,1.98778522]
[1759645547477,3.97108032,4567.2,4567.1,2.31648522]
[1759645548379,3.74348032,4567.2,4567.1,2.31648522]
[1759645548771,3.96788032,4567.2,4567.1,2.31648522]
[1759645549374,3.20938032,4567.2,4567.1,2.31648522]
[1759645549575,3.75798032,4567.2,4567.1,2.31648522]
[1759645549974,3.20938032,4567.2,4567.1,2.31648522]
[1759645550473,3.20938032,4567.2,4567.1,2.15734604]
[1759645550975,0.00158032,4567.2,4567.1,2.37734604]
[1759645551373,0.20938032,4567.2,4567.1,2.37734604]
[1759645551573,0.00158032,4567.2,4567.1,2.37734604]
[1759645551974,0.77458032,4567.2,4567.1,1.44080604]
[1759645552174,0.77458032,4567.2,4567.1,1.22080604]
[1759645552380,0.77458032,4567.2,4567.1,1.44080604]
[1759645553375,3.98238032,4567.2,4567.1,0.99460604]
[1759645553577,3.98238032,4567.2,4567.1,1.21460604]
[1759645553777,3.98238032,4567.2,4567.1,0.99460604]
[1759645554184,3.98238032,4567.2,4567.0,0.22]
[1759645554781,3.98238032,4567.2,4567.1,0.99460604]
[1759645555280,3.98238032,4567.2,4567.1,1.22220604]
[1759645555484,3.98238032,4567.2,4567.1,1.55090604]
[1759645555875,3.98238032,4567.2,4567.1,1.22220604]
[1759645556081,3.98238032,4567.2,4567.1,1.55090604]
[1759645556581,3.98238032,4567.2,4567.1,0.99460604]
[1759645556775,3.98238032,4567.2,4567.1,1.55090604]
[1759645557477,3.98238032,4567.2,4567.0,0.22]
[1759645557682,3.98238032,4567.2,4567.0,1.21460604]
[1759645557683,0.773,4567.1,4567.0,1.21460604]
[1759645557881,0.773,4567.1,4567.0,1.44220604]
[1759645558081,0.773,4567.1,4567.0,1.77090604]
[1759645559486,0.773,4567.1,4567.0,1.99180604]
[1759645559874,0.3408,4566.4,4566.2,0.78260383]
[1759645560077,0.2078,4566.6,4566.5,0.84258]
[1759645560280,0.3408,4566.9,4566.8,0.84257]
[1759645560478,3.20938032,4567.2,4567.1,1.17124]
[1759645560479,3.98238032,4567.2,4567.1,1.17124]
[1759645560781,3.98238032,4567.2,4567.1,2.16584604]
[1759645562885,3.20938032,4567.2,4567.1,2.16584604]
[1759645563381,0.00158032,4567.2,4567.1,2.16584604]
[1759645566477,0.55018032,4567.2,4567.1,2.38584604]
[1759645566886,0.00158032,4567.2,4567.1,2.38584604]
[1759645568393,0.20938032,4567.2,4567.1,2.38584604]
[1759645568581,0.00158032,4567.2,4567.1,2.38584604]
[1759645571890,0.00158032,4567.2,4567.1,2.16584604]
[1759645572188,0.00158032,4567.2,4567.1,2.38584604]
[1759645578097,0.022,4567.9,4567.8,0.39398]
[1759645578390,0.47484295,4567.9,4567.8,2.36168604]
[1759645578896,0.47484295,4567.9,4567.8,3.35629208]
[1759645579094,0.47755301,4567.9,4567.8,3.35629208]
[1759645579291,0.02471006,4567.9,4567.8,3.35629208]
[1759645583201,0.02471006,4567.9,4567.8,2.36168604]
[1759645584100,0.02471006,4567.9,4567.8,2.14168604]
[1759645584297,0.02471006,4567.9,4567.8,2.36168604]
[1759645584602,0.23251006,4567.9,4567.8,1.74770604]
[1759645584800,0.77501006,4567.9,4567.8,0.99460604]
[1759645584997,0.77501006,4567.9,4567.8,1.96770604]
[1759645584998,1.23200742,4567.9,4567.8,1.96770604]
[1759645585297,0.77501006,4567.9,4567.8,1.96770604]
[1759645585498,1.23201205,4567.9,4567.8,1.96770604]